bitfinex/quotes_ETHUSD_20240614
["timestamp","ask_amount","ask_price","bid_price","bid_amount"]
[1718383199897,2.9329,3409.6,3408.6,3.376]
[1718383200148,0.0322432,3409.4,3408.6,3.376]
[1718383200310,2.93309,3409.4,3408.6,3.376]
[1718383200800,0.02956631,3409.4,3408.6,3.376]
[1718383201042,6.095,3410.8,3408.6,4.717181]
[1718383201241,2.93189,3410.8,3409.8,3.376]
[1718383201457,0.02817721,3410.5,3409.8,3.376]
[1718383201756,10.09291,3411.0,3409.9,0.05864465]
[1718383201956,0.0275587,3410.4,3409.9,0.05864465]
[1718383202243,2.93153,3411.2,3410.0,1.43344514]
[1718383202414,2.93164,3411.1,3410.1,0.05863298]
[1718383202613,2.93136,3411.4,3410.3,2.93226]
[1718383202817,2.93136,3411.4,3410.5,2.93211]
[1718383203016,0.02836009,3411.3,3410.6,4.4240952]
[1718383203256,0.02836009,3411.3,3410.7,2.93194]
[1718383203543,2.93109,3411.7,3410.8,1.49207062]
[1718383203544,2.93127,3411.5,3410.8,1.49207062]
[1718383204070,0.02685463,3411.4,3410.8,1.49207062]
[1718383204348,2.93076,3412.1,3411.2,2.93149]
[1718383204559,2.93061,3412.3,3411.3,1.49206091]
[1718383204712,2.93066,3412.2,3411.3,1.49206091]
[1718383205026,2.93093,3411.9,3411.3,1.49206091]
[1718383205230,2.93083,3412.0,3411.3,1.49206091]
[1718383205416,0.58616,3412.0,3411.3,1.49206091]
[1718383205604,2.93118,3411.6,3410.6,3.0]
[1718383205805,2.93104,3411.8,3410.7,1.43344514]
[1718383206251,2.93144,3411.3,3410.7,1.43344514]
[1718383206455,2.93172,3411.0,3410.7,1.43344514]
[1718383206661,6.7785,3411.7,3409.7,6.878]
[1718383206662,3.518115,3410.9,3409.7,6.878]
[1718383206870,2.93225,3410.4,3409.8,1.43344514]
[1718383207084,2.93236,3410.3,3409.8,1.43344514]
[1718383207726,2.93214,3410.5,3409.8,1.43344514]
[1718383208056,2.93263,3409.9,3408.9,2.93349]
[1718383208356,2.93263,3409.9,3409.0,1.43344514]
[1718383208511,2.93277,3409.8,3409.0,1.43344514]
[1718383209471,2.93277,3409.8,3408.4,6.989]
[1718383209472,3.376,3409.5,3406.8,6.989]
[1718383209687,2.93397,3408.4,3407.3,2.93487]
[1718383209831,2.93315,3409.3,3407.1,2.93504]
[1718383209832,2.93384,3408.5,3407.1,1.173723]
[1718383210025,2.93402,3408.3,3407.4,2.93478]
[1718383210223,2.9342,3408.1,3407.2,2.93492]
[1718383210421,2.93404,3408.3,3407.3,0.587002]
[1718383210761,2.93404,3408.3,3407.0,2.93512]
[1718383210948,2.93425,3408.1,3406.9,4.36503]
[1718383211149,2.93436,3407.9,3407.0,2.93513]
[1718383211350,2.93437,3407.9,3406.9,4.3651]
[1718383211558,3.0,3409.2,3407.0,3.25713228]
[1718383211753,2.93383,3408.6,3407.5,1.43344514]
[1718383212072,2.93435,3408.0,3407.5,1.43344514]
[1718383212240,2.93438,3407.9,3407.5,1.43344514]
[1718383212447,2.93381,3408.6,3407.6,0.05868672]
[1718383212654,0.95398445,3409.1,3407.6,0.05868672]
[1718383212655,2.93384,3408.5,3407.7,1.43344514]
[1718383212829,2.93434,3408.0,3407.0,2.9351]
[1718383213030,0.586751,3408.4,3407.1,2.93503]
[1718383213031,2.93418,3408.1,3407.1,2.93503]
[1718383213425,2.93427,3408.1,3406.9,2.93519]
[1718383213626,2.93427,3408.1,3406.5,2.938941]
[1718383213627,2.93429,3408.0,3406.5,2.93552]
[1718383213831,2.93453,3407.7,3406.7,2.93538]
[1718383214035,2.93453,3407.7,3406.8,1.43344514]
[1718383214342,2.93453,3407.7,3406.8,4.36872514]
[1718383214876,0.586751,3408.4,3407.5,2.9347]
[1718383215077,0.586751,3408.4,3407.6,1.49212454]
[1718383215078,2.93423,3408.1,3407.6,1.49212454]
[1718383215261,2.93423,3408.1,3407.6,1.43344514]
[1718383215463,2.93419,3408.1,3407.6,1.43344514]
[1718383215664,9.092109,3408.0,3405.4,0.30244898]
[1718383215871,2.93497,3407.2,3406.2,1.43344514]
[1718383216162,2.93497,3407.2,3406.2,4.36924514]
[1718383216682,2.93508,3407.1,3406.2,1.43344514]
[1718383216910,2.93515,3407.0,3406.2,1.43344514]
[1718383217175,2.93515,3407.0,3406.2,4.43344514]
[1718383217379,2.93515,3407.0,3406.2,5.50978862]
[1718383218340,2.93515,3407.0,3406.2,1.43344514]
[1718383219168,2.93497,3407.2,3406.2,1.43344514]
[1718383219368,2.93504,3407.1,3406.2,1.43344514]
[1718383219680,5.87016,3407.1,3406.2,1.43344514]
[1718383219892,2.93516,3407.0,3406.2,1.43344514]
[1718383220094,2.93516,3407.0,3406.2,5.14561162]
[1718383220385,2.93505,3407.1,3406.2,5.14559162]
[1718383221488,2.93514,3407.0,3406.2,2.20979162]
[1718383222453,3.0,3407.5,3406.3,0.05870444]
[1718383222656,2.9341,3408.2,3407.3,2.93486]
[1718383222859,8.56313,3408.6,3407.4,0.0586898]
[1718383223083,8.56306,3408.6,3407.4,2.9934498]
[1718383223251,5.6293,3408.6,3407.5,2.9347]
[1718383223607,5.6293,3408.6,3407.1,2.93498]
[1718383223608,2.93394,3408.4,3407.6,1.49212719]
[1718383223756,2.93423,3408.1,3407.6,1.43344514]
[1718383224290,2.93393,3408.4,3406.6,5.9435]
[1718383224493,2.93463,3407.6,3406.7,8.0197994]
[1718383224655,2.9345,3407.8,3406.8,2.9353]
[1718383224656,2.93454,3407.7,3406.8,2.9353]
[1718383224982,2.93454,3407.7,3406.9,1.43344514]
[1718383225424,0.856323,3408.3,3406.9,1.43344514]
[1718383225558,2.93496,3407.2,3406.9,1.43344514]
[1718383225755,2.93487,3407.3,3406.1,0.45803964]
[1718383225957,2.93487,3407.3,3406.2,1.43344514]
[1718383226157,2.93514,3407.0,3406.2,1.43344514]
[1718383226379,2.93505,3407.1,3406.2,1.43344514]
[1718383226764,2.93505,3407.1,3406.2,4.36924514]
[1718383226986,5.87164,3406.2,3406.1,0.45803964]
[1718383227302,6.752374,3406.2,3406.1,0.45803964]
[1718383227596,2.93612,3405.9,3405.2,0.45832679]
[1718383227902,2.93617,3405.8,3405.3,0.05872278]
[1718383228198,2.93617,3405.8,3405.4,1.43344514]
[1718383228717,2.93608,3405.9,3405.4,1.43344514]
[1718383228894,0.587199,3405.9,3405.2,0.45832679]
[1718383229058,2.93654,3405.4,3405.2,0.45832679]
[1718383229469,2.93654,3405.4,3404.5,2.93728]
[1718383229695,2.93654,3405.4,3404.8,0.45839614]
[1718383229991,2.93654,3405.4,3404.9,1.43344514]
[1718383231594,2.93642,3405.5,3404.9,1.43344514]
[1718383231781,0.04915043,3405.3,3404.9,1.43344514]
[1718383231972,2.98419095,3405.4,3404.9,1.43344514]
[1718383232167,0.04756582,3405.2,3404.9,1.43344514]
[1718383232357,2.93652,3405.4,3404.9,1.43344514]
[1718383232559,0.04751324,3405.1,3404.9,1.43344514]
[1718383232777,2.93643,3405.5,3404.9,1.43344514]
[1718383233099,2.57325729,3405.4,3404.9,1.43344514]
[1718383233666,0.04767095,3405.4,3404.9,1.43344514]
[1718383233862,2.93642,3405.6,3404.9,1.43344514]
[1718383234096,2.98265636,3405.3,3404.9,1.43344514]
[1718383234304,2.93462,3405.3,3404.9,1.43344514]
[1718383234602,0.04598379,3405.2,3404.9,1.43344514]
[1718383234974,2.98270379,3405.2,3404.9,1.43344514]
[1718383235176,0.04598379,3405.2,3404.9,1.43344514]
[1718383235561,2.98268379,3405.2,3404.9,1.43344514]
[1718383236382,0.04598379,3405.2,3404.9,1.43344514]
[1718383237112,2.98266379,3405.2,3404.9,1.43344514]
[1718383237411,3.57458117,3405.2,3404.9,1.43344514]
[1718383237727,5.8737,3405.0,3404.9,1.43344514]
[1718383237879,2.93685,3405.0,3404.9,1.43344514]
[1718383238089,0.04528763,3405.0,3404.9,1.43344514]
[1718383238498,2.98213763,3405.0,3404.9,1.43344514]
[1718383238878,0.04528763,3405.0,3404.9,1.43344514]
[1718383239070,2.93668,3405.2,3404.9,1.43344514]
[1718383239071,2.93669,3405.2,3404.9,1.43344514]
[1718383239271,0.04205131,3405.1,3404.9,1.43344514]
[1718383239509,2.97883131,3405.1,3404.9,1.43344514]
[1718383239669,2.93685,3405.0,3404.9,1.43344514]
[1718383239989,2.9787939,3405.0,3404.9,1.43344514]
[1718383244069,0.0419439,3405.0,3404.9,1.43344514]
[1718383244266,2.93679,3405.1,3404.9,1.43344514]
[1718383244769,0.0421232,3405.0,3404.9,1.43344514]
[1718383247466,2.9789732,3405.0,3404.9,1.43344514]
[1718383247675,0.0421232,3405.0,3404.9,1.43344514]
[1718383247968,2.9789732,3405.0,3404.9,1.43344514]
[1718383249663,5.9158232,3405.0,3404.9,1.43344514]
[1718383250229,2.9789732,3405.0,3404.9,1.43344514]
[1718383251228,5.9158232,3405.0,3404.9,1.43344514]
[1718383251445,2.9789732,3405.0,3404.9,1.43344514]
[1718383251942,5.9158232,3405.0,3404.9,1.43344514]
[1718383254857,5.9158232,3405.0,3403.5,0.4584003]
[1718383254858,2.93806,3403.6,3403.5,0.4584003]
[1718383255185,8.85563329,3403.6,3403.5,0.4584003]
[1718383255332,8.85563329,3403.6,3402.2,2.93923]
[1718383255333,2.93851,3403.1,3402.2,2.93923]
[1718383255529,2.93867,3402.9,3401.9,0.45858095]
[1718383255770,2.93891,3402.7,3401.8,2.93961]
[1718383256077,2.93901,3402.5,3401.9,0.58794]
[1718383256235,2.9392,3402.3,3401.4,0.45864229]
[1718383256435,0.04011287,3402.2,3401.4,0.45864229]
[1718383256648,2.93953,3402.0,3401.4,0.45864229]
[1718383256861,0.03998227,3401.9,3401.4,0.45864229]
[1718383257044,0.03998227,3401.9,3401.5,1.43344514]
[1718383257544,0.03998227,3401.9,3401.5,1.62265388]
[1718383257747,2.93825,3403.4,3401.8,1.43344514]
[1718383258063,3.0,3403.7,3402.1,1.43344514]
[1718383258382,2.938,3403.7,3402.2,0.05877075]
[1718383258585,2.93876,3402.8,3402.3,1.43344514]
[1718383258804,2.93858,3403.0,3402.4,0.05877299]
[1718383258935,2.93833,3403.3,3402.6,1.43344514]
[1718383259147,3.0,3404.1,3402.7,0.55]
[1718383259378,3.0,3404.1,3402.8,1.43344514]
[1718383259379,3.0,3403.8,3402.8,1.43344514]
[1718383259546,2.93756,3404.2,3403.2,1.43344514]
[1718383259747,2.93756,3404.2,3403.4,1.43344514]
[1718383259748,2.93755,3404.2,3403.4,1.43344514]
[1718383259974,2.93764,3404.1,3403.4,1.43344514]
[1718383260772,2.93781,3403.9,3403.4,1.43344514]
[1718383260959,2.93815,3403.5,3402.9,3.0]
[1718383261152,2.93875,3402.8,3402.0,2.93937]
[1718383261348,2.93875,3402.8,3402.1,1.43344514]
[1718383261893,4.0596,3403.9,3402.1,1.43344514]
[1718383261894,2.93918,3402.4,3402.1,1.43344514]
[1718383262258,2.9393,3402.2,3401.5,0.18920874]
[1718383262474,2.9393,3402.2,3401.6,1.43344514]
[1718383262692,3.0,3402.5,3399.3,3.55543854]
[1718383262994,2.93963,3401.8,3400.9,2.94038]
[1718383263291,2.93981,3401.6,3399.9,0.4587928]
[1718383263587,2.9396,3401.9,3400.0,0.05880275]
[1718383263788,2.93965,3401.8,3400.9,2.94038]
[1718383264180,2.93965,3401.8,3400.7,2.94055]
[1718383264398,2.93987,3401.6,3400.5,2.94066]
[1718383264545,2.94041,3400.9,3400.1,0.42021505]
[1718383264744,2.94048,3400.9,3400.2,1.43344514]
[1718383264951,2.94057,3400.7,3399.9,0.4587928]
[1718383265148,2.9402,3401.2,3400.0,1.49226058]
[1718383265460,0.03532071,3401.1,3400.4,2.94082]
[1718383265658,2.94005,3401.3,3400.5,1.43344514]
[1718383265861,0.03537342,3401.2,3400.5,1.43344514]
[1718383266063,2.94031,3401.0,3400.5,1.43344514]
[1718383266265,0.03521528,3400.9,3400.0,2.94116]
[1718383266462,2.97561528,3400.9,3400.0,1.43344514]
[1718383266682,2.94056,3400.8,3400.0,1.43344514]
[1718383267003,0.03510984,3400.7,3400.0,1.43344514]
[1718383267510,0.03505712,3400.6,3400.1,1.49226149]
[1718383267652,3.0,3401.5,3400.5,5.88148]
[1718383267853,2.94041,3400.9,3400.0,2.94113]
[1718383268053,0.03443457,3400.8,3400.1,1.43344514]
[1718383268351,0.03443457,3400.8,3400.4,2.9408]
[1718383268566,0.03443457,3400.8,3399.6,3.0]
[1718383268567,0.03443457,3400.8,3400.7,5.88114]
[1718383268853,2.93937,3402.1,3401.2,2.94013]
[1718383269094,0.03521515,3402.0,3401.2,4.37357514]
[1718383269301,6.98078,3402.3,3401.3,4.37348514]
[1718383269510,2.93956,3401.9,3401.0,2.94031]
[1718383269657,2.93956,3401.9,3401.1,1.43344514]
[1718383269658,2.93971,3401.7,3401.1,1.43344514]
[1718383270002,2.93953,3401.9,3401.1,1.43344514]
[1718383270003,0.03473247,3401.6,3401.1,1.43344514]
[1718383270381,3.637428,3402.2,3401.1,4.37365514]
[1718383270585,0.03404894,3401.5,3401.1,4.30593692]
[1718383270810,3.0,3402.1,3401.2,2.94013]
[1718383271122,3.0,3402.1,3401.1,5.03057861]
[1718383271123,0.03321033,3402.0,3401.4,2.93996]
[1718383271447,0.03321033,3402.0,3401.9,2.93953]
[1718383271581,2.93809,3403.6,3401.9,2.93953]
[1718383271582,5.78687,3403.6,3402.4,2.93909]
[1718383271785,2.93816,3403.5,3402.5,4.37245514]
[1718383271998,2.93816,3403.5,3401.7,2.93969]
[1718383271999,2.93832,3403.3,3401.7,2.93969]
[1718383272186,2.93832,3403.3,3401.1,3.66486169]
[1718383272187,2.93868,3402.9,3401.1,0.72464169]
[1718383272419,2.9388,3402.8,3401.4,2.93988]
[1718383272644,2.93873,3402.9,3401.6,2.93978]
[1718383272781,2.93857,3403.1,3402.2,2.93926]
[1718383273125,2.93857,3403.1,3402.1,2.93935]
[1718383273293,2.93857,3403.1,3401.2,0.55]
[1718383273294,2.93877,3402.8,3401.2,2.94009]
[1718383273485,2.93928,3402.2,3401.3,1.43344514]
[1718383273683,3.0141,3402.4,3400.6,2.94057]
[1718383273882,2.93972,3401.7,3400.7,1.43344514]
[1718383274088,3.0,3401.6,3400.7,1.43344514]
[1718383274323,3.0,3401.6,3400.3,2.9409]
[1718383274618,3.0,3402.1,3401.1,2.94021]
[1718383274820,2.93953,3401.9,3401.2,1.43344514]
[1718383274981,2.93943,3402.1,3401.2,1.43344514]
[1718383275181,3.0,3402.0,3401.2,1.43344514]
[1718383275424,2.93957,3401.9,3401.2,1.43344514]
[1718383275724,2.8217,3401.3,3399.9,2.94125]
[1718383275932,2.94049,3400.8,3399.6,2.94149]
[1718383276079,2.94013,3401.2,3399.4,2.94165]
[1718383276080,2.94038,3401.0,3400.0,1.43344514]
[1718383276422,3.0,3400.9,3400.0,1.43344514]
[1718383276638,2.9404,3400.9,3400.0,1.43344514]
[1718383276782,3.0,3400.8,3400.0,1.43344514]
[1718383277209,3.0,3400.8,3400.1,2.94107]
[1718383277406,3.0,3400.9,3400.2,1.43344514]
[1718383277579,3.0,3401.2,3400.2,1.43344514]
[1718383277796,4.110408,3401.1,3400.2,4.37444514]
[1718383277997,4.110408,3401.1,3400.2,1.43344514]
[1718383278215,2.94066,3400.6,3399.7,2.94142]
[1718383278387,2.94048,3400.8,3399.4,2.94168]
[1718383278388,2.94048,3400.8,3399.8,1.43344514]
[1718383278586,2.94057,3400.7,3399.8,4.37478514]
[1718383279119,0.0292805,3400.6,3399.8,4.37478514]
[1718383279331,0.0292805,3400.6,3399.9,2.94125]
[1718383279488,0.0292805,3400.6,3399.8,4.37478514]
[1718383279489,0.0292805,3400.6,3400.5,2.94074]
[1718383279691,5.93988,3401.5,3400.6,2.94063]
[1718383279892,5.93988,3401.5,3400.6,4.37407514]
[1718383279893,2.93988,3401.5,3400.6,4.37407514]
[1718383280203,0.887893,3401.8,3400.7,1.49225199]
[1718383280204,0.02955293,3401.2,3400.7,1.49225199]
[1718383280396,0.02955293,3401.2,3400.9,2.94031]
[1718383280597,3.0186,3401.9,3401.0,1.43344514]
[1718383280829,2.93963,3401.8,3401.0,1.43344514]
[1718383281025,0.03040639,3401.8,3400.2,2.94098]
[1718383281327,2.93971,3401.7,3400.7,2.94055]
[1718383281646,0.89283264,3401.7,3400.8,1.49224857]
[1718383281815,0.03006642,3401.6,3400.8,1.43344514]
[1718383281988,2.93988,3401.5,3400.8,1.43344514]
[1718383282195,0.03006642,3401.6,3401.1,2.94021]
[1718383282388,0.02991802,3401.4,3401.2,1.4922431]
[1718383282603,2.93936,3402.1,3401.3,0.44200401]
[1718383282814,2.93936,3402.1,3401.2,4.37357514]
[1718383283034,0.03047675,3402.0,3401.2,4.37357514]
[1718383283326,0.03047675,3402.0,3401.2,1.43344514]
[1718383283520,2.96992675,3402.0,3401.2,1.43344514]
[1718383284357,2.93986,3401.6,3400.4,35.0]
[1718383284491,0.03047675,3402.0,3400.5,4.37417514]
[1718383284492,2.93988,3401.5,3400.5,4.37417514]
[1718383284694,0.03014206,3401.4,3400.5,4.37417514]
[1718383284896,2.93988,3401.5,3400.5,4.37417514]
[1718383285188,2.94006,3401.3,3400.5,1.43344514]
[1718383285389,2.94022,3401.1,3399.0,3.095]
[1718383285614,2.94048,3400.8,3399.8,1.43344514]
[1718383286005,0.02962849,3400.7,3399.9,2.94124]
[1718383286207,0.02962849,3400.7,3400.0,1.43344514]
[1718383286390,2.94066,3400.6,3400.0,1.43344514]
[1718383286831,0.02952307,3400.5,3400.0,1.43344514]
[1718383287196,2.94057,3400.7,3400.0,1.43344514]
[1718383287435,0.02930759,3400.4,3400.0,1.43344514]
[1718383287635,2.94068,3400.6,3400.0,1.43344514]
[1718383288323,2.94076,3400.5,3400.0,1.43344514]
[1718383288627,0.02890932,3400.4,3400.0,1.43344514]
[1718383289042,2.94057,3400.7,3400.0,1.43344514]
[1718383289266,0.02885659,3400.3,3400.0,1.43344514]
[1718383289410,2.94057,3400.7,3400.0,1.43344514]
[1718383290309,2.94064,3400.7,3400.0,1.43344514]
[1718383290505,0.02901477,3400.6,3400.1,0.05881357]
[1718383290763,2.94031,3401.0,3400.2,36.43344514]
[1718383291044,0.02896205,3400.5,3400.3,0.05881011]
[1718383291254,0.02896205,3400.5,3400.3,1.49225525]
[1718383291542,5.98668,3401.5,3400.6,2.94065]
[1718383291746,2.93979,3401.6,3400.7,4.43280038]
[1718383291978,0.293877,3402.7,3400.9,1.43344514]
[1718383291979,0.02952365,3401.4,3400.9,1.43344514]
[1718383292115,0.02997973,3401.5,3401.4,2.93996]
[1718383292449,2.93923,3402.3,3401.4,1.43344514]
[1718383292648,2.9391,3402.4,3401.5,1.43344514]
[1718383292808,0.03004173,3402.2,3401.6,2.93977]
[1718383293005,0.0300944,3402.3,3401.7,1.49222972]
[1718383293210,2.93859,3403.0,3402.0,2.93944]
[1718383293405,2.93859,3403.0,3402.1,1.49222569]
[1718383293652,0.03015781,3402.9,3402.1,4.43154569]
[1718383293864,0.03015781,3402.9,3402.1,4.37279514]
[1718383294012,0.03015781,3402.9,3402.2,0.05877128]
[1718383294215,2.9623,3403.7,3402.8,2.93875]
[1718383294216,2.93806,3403.6,3402.8,2.93875]
[1718383294411,2.93806,3403.6,3402.8,4.37219514]
[1718383294724,0.03052784,3403.5,3402.8,4.37219514]
[1718383295057,2.93806,3403.6,3402.8,4.37219514]
[1718383295460,2.93825,3403.4,3402.8,1.43344514]
[1718383295757,0.61801318,3403.3,3401.8,35.0]
[1718383295941,0.61801318,3403.3,3402.0,2.93944]
[1718383295942,2.93868,3402.9,3402.0,2.93944]
[1718383296257,2.9623,3403.7,3402.3,2.93918]
[1718383296419,2.93824,3403.4,3402.4,1.46036785]
[1718383296941,2.93857,3403.1,3402.4,1.43344514]
[1718383297282,0.62141274,3403.0,3402.4,1.43344514]
[1718383297622,0.03063209,3403.0,3402.4,1.43344514]
[1718383298056,2.93858,3403.1,3402.4,1.43344514]
[1718383298291,2.93893,3402.6,3401.8,2.9396]
[1718383298425,2.93893,3402.6,3401.9,1.43344514]
[1718383298841,0.03000924,3402.5,3401.9,1.43344514]
[1718383299181,3.55979916,3402.5,3401.9,1.43344514]
[1718383299334,0.62077916,3402.5,3401.9,1.43344514]
[1718383299543,0.62077916,3402.5,3402.0,5.87876]
[1718383299544,0.03000924,3402.5,3402.0,5.87876]
[1718383299847,2.93946,3402.0,3401.1,2.94016]
[1718383300107,3.0,3403.5,3401.0,0.20422504]
[1718383300108,3.0841,3403.3,3401.2,0.02946571]
[1718383300381,2.93876,3402.8,3401.6,2.93975]
[1718383300592,5.96859037,3403.2,3401.7,0.05878172]
[1718383300897,5.96859037,3403.2,3401.0,0.20422504]
[1718383300898,0.90526904,3403.1,3401.0,0.20422504]
[1718383301094,2.93867,3402.9,3401.4,2.93993]
[1718383301233,2.93875,3402.8,3401.9,2.93952]
[1718383301577,2.96866976,3402.8,3401.9,2.93952]
[1718383301734,0.02991976,3402.8,3402.0,2.98650724]
[1718383301936,0.02991976,3402.8,3401.7,2.93969]
[1718383301937,2.93867,3402.9,3401.7,2.93969]
[1718383302244,0.02991976,3402.8,3401.7,3.527652]
[1718383302631,0.02991976,3402.8,3401.8,1.49222485]
[1718383302836,0.02991976,3402.8,3402.2,2.93926]
[1718383303071,3.52778954,3404.5,3402.5,2.93899]
[1718383303276,2.6854,3403.9,3402.7,2.93883]
[1718383303577,3.500201,3403.8,3402.8,1.49221051]
[1718383303788,3.500201,3403.8,3401.7,8.387652]
[1718383303789,2.9383,3403.4,3401.7,0.587962]
[1718383303934,0.562311,3403.8,3402.9,1.43344514]
[1718383304137,0.562311,3403.8,3403.0,0.05874461]
[1718383304363,5.7197,3404.6,3403.5,2.93814]
[1718383304531,2.7825,3404.6,3403.9,2.93777]
[1718383304732,2.7825,3404.6,3404.0,1.49219068]
[1718383305037,2.7825,3405.1,3404.0,1.43344514]
[1718383305294,2.93649,3405.5,3404.0,1.43344514]
[1718383305295,2.93649,3405.5,3404.5,1.43344514]
[1718383305457,0.92457195,3405.5,3404.6,0.55]
[1718383305631,0.92457195,3405.5,3404.7,4.37047514]
[1718383305977,2.7825,3405.7,3404.7,1.43344514]
[1718383306161,2.93666,3405.3,3404.7,1.43344514]
[1718383306564,2.93703,3404.8,3404.7,1.43344514]
[1718383306876,2.93692,3405.0,3403.9,3.0]
[1718383307086,2.93664,3405.3,3404.0,4.37114514]
[1718383307087,2.93694,3404.9,3404.0,4.37114514]
[1718383307299,2.93694,3404.9,3404.1,3.0]
[1718383307436,2.93694,3404.9,3403.8,37.9378]
[1718383307437,3.524311,3404.9,3404.2,1.43344514]
[1718383307640,3.524311,3404.9,3402.9,0.3047023]
[1718383307641,2.93746,3404.3,3402.9,0.3047023]
[1718383307882,0.587371,3404.9,3403.5,1.43344514]
[1718383308055,2.9372,3404.6,3403.6,2.97086692]
[1718383308250,2.93689,3405.0,3403.7,1.43344514]
[1718383308451,3.0,3405.5,3403.7,1.43344514]
[1718383308452,2.93713,3404.7,3403.7,1.43344514]
[1718383308667,2.93672,3405.2,3402.5,4.56865165]
[1718383308668,2.9464,3404.8,3402.5,4.266]
[1718383308867,2.93789,3403.8,3403.0,2.93856]
[1718383309041,2.93771,3404.1,3403.1,1.43344514]
[1718383309262,0.03062164,3403.7,3403.1,1.43344514]
[1718383309479,0.587518,3404.1,3403.1,1.43344514]
[1718383309639,0.03048464,3403.6,3403.1,1.43344514]
[1718383309843,5.87552,3404.0,3403.1,1.43344514]
[1718383310042,0.03033199,3403.5,3403.1,1.43344514]
[1718383310239,0.587518,3404.1,3403.1,1.43344514]
[1718383310442,0.03086142,3403.4,3403.1,1.43344514]
[1718383310644,2.93763,3404.2,3403.1,4.37192514]
[1718383310850,2.9378,3403.9,3403.1,1.43344514]
[1718383311269,0.03106875,3403.8,3403.1,1.43344514]
[1718383311477,0.03106875,3403.8,3403.2,2.93832]
[1718383311642,2.9378,3403.9,3403.3,1.43344514]
[1718383311845,2.93731,3404.5,3402.4,3.0]
[1718383311846,2.96677861,3403.7,3402.4,3.0]
[1718383312155,2.93815,3403.5,3402.6,2.93891]
[1718383312344,0.0306287,3403.4,3402.7,1.43344514]
[1718383312891,0.0306287,3403.4,3402.7,4.37227514]
[1718383313094,2.93807,3403.6,3402.7,4.37227514]
[1718383313302,2.93807,3403.6,3401.9,1.765]
[1718383313303,5.875,3403.4,3400.2,0.61372854]
[1718383313472,2.9391,3402.5,3401.1,2.94015]
[1718383313801,2.9391,3402.5,3400.2,4.87872854]
[1718383313802,2.93919,3402.3,3401.3,2.94003]
[1718383314396,2.93899,3402.6,3400.3,2.94083]
[1718383314397,2.93962,3401.8,3400.6,2.94065]
[1718383314565,2.93956,3401.9,3400.7,0.294065]
[1718383314767,0.02930864,3401.7,3401.4,2.9399]
[1718383314966,0.02905178,3401.8,3401.5,0.05878876]
[1718383315168,2.93936,3402.1,3401.2,0.05878875]
[1718383315369,0.0285795,3401.7,3401.3,0.05878873]
[1718383315633,2.93936,3402.1,3401.3,0.05878873]
[1718383315634,2.93936,3402.1,3401.4,1.43344514]
[1718383315788,0.02866718,3401.6,3401.4,1.43344514]
[1718383315985,2.93901,3402.5,3401.5,0.0587888]
[1718383316230,2.93928,3402.2,3401.6,1.43344514]
[1718383316428,2.93901,3402.5,3401.7,0.05878534]
[1718383316743,2.93901,3402.5,3401.8,1.49223025]
[1718383317033,2.93928,3402.2,3401.8,1.43344514]
[1718383317357,2.79,3402.9,3401.9,0.05878534]
[1718383317553,3.362864,3402.9,3401.9,1.43344514]
[1718383317685,2.93928,3402.2,3401.9,1.43344514]
[1718383318543,2.93918,3402.4,3400.9,2.94036]
[1718383318544,2.93918,3402.3,3400.9,2.94036]
[1718383318829,2.93918,3402.3,3401.2,1.43344514]
[1718383318989,2.93909,3402.5,3401.3,0.6087862]
[1718383319190,2.9391,3402.4,3401.5,2.93986]
[1718383319438,2.9391,3402.4,3401.6,1.49223127]
[1718383319589,2.93884,3402.7,3401.6,4.43200127]
[1718383319789,3.0,3402.6,3401.6,1.43344514]
[1718383320203,2.93902,3402.5,3401.6,4.37322514]
[1718383320814,3.0,3402.8,3401.6,1.43344514]
[1718383321022,3.0,3402.8,3401.0,5.9403]
[1718383321023,2.93962,3401.8,3401.0,5.9403]
[1718383321230,2.93962,3401.8,3401.1,1.43344514]
[1718383321599,2.93953,3401.9,3401.1,1.43344514]
[1718383321813,2.93981,3401.6,3401.1,1.43344514]
[1718383322240,0.02758088,3401.5,3401.1,1.43344514]
[1718383322551,0.02758088,3401.5,3400.2,2.94094]
[1718383322552,2.94006,3401.3,3400.2,2.94094]
[1718383322852,0.02813188,3401.2,3400.3,1.43344514]
[1718383323206,2.94043,3400.9,3400.3,1.43344514]
[1718383323706,0.02786185,3400.8,3400.3,1.43344514]
[1718383323910,2.94032,3401.0,3400.3,1.43344514]
[1718383324145,2.94059,3400.7,3400.3,1.43344514]
[1718383324324,0.02774889,3400.6,3400.3,1.43344514]
[1718383324531,2.96843889,3400.6,3400.3,1.43344514]
[1718383325004,2.94069,3400.6,3400.3,1.43344514]
[1718383326918,2.94023,3401.1,3400.3,1.43344514]
[1718383327161,0.03509238,3401.0,3400.3,1.43344514]
[1718383327457,2.9405,3400.8,3400.3,1.43344514]
[1718383327668,2.94076,3400.5,3400.3,1.43344514]
[1718383327974,2.94066,3400.6,3400.3,1.43344514]
[1718383329555,2.94057,3400.7,3399.4,3.0]
[1718383329556,2.94083,3400.4,3399.5,2.9416]
[1718383329715,2.94083,3400.4,3399.6,4.43344514]
[1718383329922,2.94074,3400.5,3399.6,1.43344514]
[1718383330355,2.94074,3400.5,3399.6,4.37492514]
[1718383330739,2.94083,3400.4,3399.6,4.37492514]
[1718383331023,2.94083,3400.4,3399.6,1.43344514]
[1718383331222,2.94083,3400.4,3399.6,2.25394955]
[1718383331551,2.94083,3400.4,3399.6,5.19544955]
[1718383331755,2.94083,3400.4,3399.6,2.25394955]
[1718383331931,2.94065,3400.6,3399.6,2.25394955]
[1718383331932,2.94065,3400.6,3399.6,1.43344514]
[1718383332419,2.94084,3400.4,3399.6,1.43344514]
[1718383332658,2.94091,3400.3,3399.6,1.43344514]
[1718383333420,2.94084,3400.4,3399.6,1.43344514]
[1718383334436,2.94093,3400.3,3399.6,1.43344514]
[1718383335350,2.94109,3400.1,3398.9,3.0623485]
[1718383335536,2.94143,3399.7,3399.0,4.43344514]
[1718383336066,2.94135,3399.8,3399.0,7.37547514]
[1718383337736,2.94118,3400.0,3399.0,4.43344514]
[1718383337935,2.94083,3400.4,3399.5,2.94153]
[1718383338245,2.94083,3400.4,3399.2,2.94185]